[Event "Titled Tuesday Blitz June 28 Early 2022"]
[White "Hambleton, Aman"]
[Black "Begunov, Konstantin"]
[WhiteFideId "2606577"]
[BlackFideId "4118510"]
[WhiteElo "2552"]
[BlackElo "2262"]
[Result "1-0"]
[Round "01"]
[TimeControl "180+1"]
[Date "2022.06.28"]
[WhiteClock "0:00:03"]
[BlackClock "0:00:05"]

1. d4 {[%clk 0:02:57]}  d5 {[%clk 0:02:59]} 2. Bf4 {[%clk 0:02:50]}  c6 {[%clk 0:02:59]} 3. e3 {[%clk 0:02:49]}  Qb6 {[%clk 0:02:58]} 4. Qc1 {[%clk 0:02:46]}  Bf5 {[%clk 0:02:58]} 5. c4 {[%clk 0:02:46]}  e6 {[%clk 0:02:49]} 6. Nc3 {[%clk 0:02:46]}  Nf6 {[%clk 0:02:45]} 7. Nf3 {[%clk 0:02:46]}  Nbd7 {[%clk 0:02:45]} 8. Be2 {[%clk 0:02:20]}  h6 {[%clk 0:02:44]} 9. O-O {[%clk 0:02:19]}  Be7 {[%clk 0:02:44]} 10. h3 {[%clk 0:02:18]}  O-O {[%clk 0:02:44]} 11. c5 {[%clk 0:02:19]}  Qd8 {[%clk 0:02:42]} 12. b4 {[%clk 0:02:19]}  Ne4 {[%clk 0:02:20]} 13. Nxe4 {[%clk 0:01:26]}  Bxe4 {[%clk 0:02:09]} 14. Qc3 {[%clk 0:01:26]}  a6 {[%clk 0:01:50]} 15. a4 {[%clk 0:01:26]}  Bf6 {[%clk 0:01:45]} 16. b5 {[%clk 0:01:25]}  axb5 {[%clk 0:01:45]} 17. axb5 {[%clk 0:01:26]}  Re8 {[%clk 0:01:35]} 18. Rxa8 {[%clk 0:01:14]}  Qxa8 {[%clk 0:01:34]} 19. Ra1 {[%clk 0:01:15]}  Qc8 {[%clk 0:01:15]} 20. bxc6 {[%clk 0:00:35]}  bxc6 {[%clk 0:01:16]} 21. Nd2 {[%clk 0:00:31]}  e5 {[%clk 0:01:01]} 22. Nxe4 {[%clk 0:00:17]}  exd4 {[%clk 0:01:00]} 23. Nxf6+ {[%clk 0:00:14]}  Nxf6 {[%clk 0:00:54]} 24. Qxd4 {[%clk 0:00:14]}  Re4 {[%clk 0:00:47]} 25. Qd2 {[%clk 0:00:13]}  Qf8 {[%clk 0:00:43]} 26. Bd3 {[%clk 0:00:12]}  Re6 {[%clk 0:00:39]} 27. Bd6 {[%clk 0:00:11]}  Qd8 {[%clk 0:00:36]} 28. Qa2 {[%clk 0:00:09]}  Re8 {[%clk 0:00:34]} 29. Qa6 {[%clk 0:00:07]}  Qd7 {[%clk 0:00:27]} 30. Qb6 {[%clk 0:00:08]}  Ne4 {[%clk 0:00:23]} 31. Bxe4 {[%clk 0:00:08]}  Rxe4 {[%clk 0:00:23]} 32. Qb1 {[%clk 0:00:05]}  g6 {[%clk 0:00:17]} 33. Ra8+ {[%clk 0:00:03]}  Kh7 {[%clk 0:00:16]} 34. Qb2 {[%clk 0:00:03]}  d4 {[%clk 0:00:12]} 35. f3 {[%clk 0:00:04]}  Rxe3 {[%clk 0:00:11]} 36. Qxd4 {[%clk 0:00:04]}  Re1+ {[%clk 0:00:09]} 37. Kf2 {[%clk 0:00:05]}  f6 {[%clk 0:00:05]} 38. Kxe1 {[%clk 0:00:03]}  Qe6+ {[%clk 0:00:05]} 39. Kf2 {[%clk 0:00:03]}  Qa2+ {[%clk 0:00:05]} 40. Rxa2 {[%clk 0:00:03]} 1-0


[Site "https://www.chess.com"]

[Event "Titled Tuesday Blitz June 28 Early 2022"]
[White "Ianov, Viktor"]
[Black "Polster, Christian"]
[WhiteFideId "14102730"]
[BlackFideId "12965081"]
[WhiteElo "2152"]
[BlackElo "2286"]
[Result "0-1"]
[Round "01"]
[TimeControl "180+1"]
[Date "2022.06.28"]
[WhiteClock "0:00:52"]
[BlackClock "0:00:05"]

1. Nf3 {[%clk 0:02:59]}  d5 {[%clk 0:02:43]} 2. g3 {[%clk 0:02:59]}  Nf6 {[%clk 0:02:05]} 3. Bg2 {[%clk 0:02:58]}  Bf5 {[%clk 0:02:00]} 4. O-O {[%clk 0:02:57]}  e6 {[%clk 0:02:00]} 5. d3 {[%clk 0:02:57]}  c5 {[%clk 0:02:00]} 6. c4 {[%clk 0:02:57]}  Nc6 {[%clk 0:02:00]} 7. cxd5 {[%clk 0:02:54]}  exd5 {[%clk 0:01:59]} 8. d4 {[%clk 0:02:54]}  h6 {[%clk 0:01:51]} 9. Nc3 {[%clk 0:02:54]}  c4 {[%clk 0:01:36]} 10. Ne5 {[%clk 0:02:52]}  Bb4 {[%clk 0:01:27]} 11. Bf4 {[%clk 0:02:47]}  O-O {[%clk 0:01:25]} 12. Rc1 {[%clk 0:02:46]}  Re8 {[%clk 0:01:24]} 13. b3 {[%clk 0:02:44]}  Ba3 {[%clk 0:01:22]} 14. Nxc6 {[%clk 0:02:38]}  bxc6 {[%clk 0:01:21]} 15. bxc4 {[%clk 0:02:38]}  Bxc1 {[%clk 0:01:20]} 16. Qxc1 {[%clk 0:02:38]}  Rc8 {[%clk 0:01:18]} 17. c5 {[%clk 0:02:22]}  Qa5 {[%clk 0:01:13]} 18. Qb2 {[%clk 0:02:09]}  Qa6 {[%clk 0:00:56]} 19. Re1 {[%clk 0:02:03]}  Re7 {[%clk 0:00:49]} 20. f3 {[%clk 0:01:55]}  Rb7 {[%clk 0:00:46]} 21. Qd2 {[%clk 0:01:55]}  Qa3 {[%clk 0:00:43]} 22. e4 {[%clk 0:01:44]}  Rb2 {[%clk 0:00:31]} 23. Qe3 {[%clk 0:01:42]}  Be6 {[%clk 0:00:23]} 24. Nxd5 {[%clk 0:01:37]}  Qxe3+ {[%clk 0:00:13]} 25. Nxe3 {[%clk 0:01:37]}  Rxa2 {[%clk 0:00:12]} 26. Bd6 {[%clk 0:01:32]}  a5 {[%clk 0:00:12]} 27. f4 {[%clk 0:01:30]}  a4 {[%clk 0:00:11]} 28. f5 {[%clk 0:01:30]}  Bb3 {[%clk 0:00:11]} 29. d5 {[%clk 0:01:22]}  cxd5 {[%clk 0:00:11]} 30. exd5 {[%clk 0:01:22]}  Rd2 {[%clk 0:00:10]} 31. Nf1 {[%clk 0:01:12]}  Rd3 {[%clk 0:00:09]} 32. Re3 {[%clk 0:01:11]}  Rd4 {[%clk 0:00:06]} 33. Be5 {[%clk 0:01:10]}  Rd1 {[%clk 0:00:03]} 34. Bxf6 {[%clk 0:01:10]}  gxf6 {[%clk 0:00:04]} 35. d6 {[%clk 0:01:09]}  Rxc5 {[%clk 0:00:04]} 36. Kf2 {[%clk 0:01:09]}  Rxd6 {[%clk 0:00:04]} 37. Re8+ {[%clk 0:01:07]}  Kg7 {[%clk 0:00:04]} 38. Ne3 {[%clk 0:01:07]}  Rd2+ {[%clk 0:00:03]} 39. Kf3 {[%clk 0:01:07]}  Rc3 {[%clk 0:00:03]} 40. Bh3 {[%clk 0:01:03]}  a3 {[%clk 0:00:03]} 41. Ra8 {[%clk 0:01:02]}  Rdd3 {[%clk 0:00:03]} 42. Kf4 {[%clk 0:00:59]}  Rxe3 {[%clk 0:00:03]} 43. Rxa3 {[%clk 0:00:57]}  Rf3+ {[%clk 0:00:03]} 44. Kg4 {[%clk 0:00:56]}  Bd1 {[%clk 0:00:03]} 45. Kh4 {[%clk 0:00:55]}  Rxa3 {[%clk 0:00:02]} 46. Bg4 {[%clk 0:00:55]}  Ra4 {[%clk 0:00:03]} 47. Kh3 {[%clk 0:00:53]}  Rxg4 {[%clk 0:00:04]} 48. Kxg4 {[%clk 0:00:53]}  Rf2+ {[%clk 0:00:04]} 49. Kh3 {[%clk 0:00:53]}  h5 {[%clk 0:00:05]} 50. Kh4 {[%clk 0:00:52]}  Rxh2# {[%clk 0:00:05]} 0-1


[Site "https://www.chess.com"]

[Event "Titled Tuesday Blitz June 28 Early 2022"]
[White "Iinuma, Paul Y"]
[Black "Lashkin, Jegor"]
[WhiteFideId "2031809"]
[BlackFideId "13907808"]
[WhiteElo "2052"]
[BlackElo "2368"]
[Result "0-1"]
[Round "01"]
[TimeControl "180+1"]
[Date "2022.06.28"]
[WhiteClock "0:00:06"]
[BlackClock "0:00:06"]

1. d4 {[%clk 0:02:51]}  Nf6 {[%clk 0:03:00]} 2. Bf4 {[%clk 0:02:46]}  d5 {[%clk 0:03:00]} 3. e3 {[%clk 0:02:41]}  e6 {[%clk 0:03:00]} 4. Nd2 {[%clk 0:02:40]}  Bd6 {[%clk 0:03:01]} 5. Bg3 {[%clk 0:02:35]}  O-O {[%clk 0:03:01]} 6. Bd3 {[%clk 0:02:29]}  b6 {[%clk 0:03:01]} 7. Qe2 {[%clk 0:02:25]}  c5 {[%clk 0:03:00]} 8. c3 {[%clk 0:02:24]}  Bb7 {[%clk 0:02:49]} 9. f4 {[%clk 0:02:24]}  Ne4 {[%clk 0:02:46]} 10. Ngf3 {[%clk 0:02:19]}  Nd7 {[%clk 0:02:44]} 11. Bh4 {[%clk 0:02:18]}  Qc7 {[%clk 0:02:40]} 12. Ng5 {[%clk 0:02:05]}  Ndf6 {[%clk 0:02:34]} 13. Ngxe4 {[%clk 0:01:25]}  Nxe4 {[%clk 0:02:33]} 14. O-O {[%clk 0:01:14]}  Nxd2 {[%clk 0:02:23]} 15. Qxd2 {[%clk 0:01:13]}  c4 {[%clk 0:02:23]} 16. Bc2 {[%clk 0:01:12]}  f5 {[%clk 0:02:24]} 17. g4 {[%clk 0:01:09]}  b5 {[%clk 0:02:23]} 18. Qg2 {[%clk 0:01:01]}  Rae8 {[%clk 0:02:22]} 19. Qh3 {[%clk 0:01:00]}  Bc8 {[%clk 0:02:16]} 20. Rf2 {[%clk 0:00:57]}  a5 {[%clk 0:02:14]} 21. a3 {[%clk 0:00:57]}  Bd7 {[%clk 0:02:08]} 22. Raf1 {[%clk 0:00:55]}  b4 {[%clk 0:02:08]} 23. axb4 {[%clk 0:00:55]}  axb4 {[%clk 0:02:09]} 24. Rg2 {[%clk 0:00:48]}  bxc3 {[%clk 0:02:06]} 25. bxc3 {[%clk 0:00:48]}  Qa5 {[%clk 0:02:04]} 26. Be1 {[%clk 0:00:48]}  Ba4 {[%clk 0:02:00]} 27. Bb1 {[%clk 0:00:36]}  Qb5 {[%clk 0:01:57]} 28. Bh4 {[%clk 0:00:26]}  Qd7 {[%clk 0:01:55]} 29. Kh1 {[%clk 0:00:20]}  Kh8 {[%clk 0:01:50]} 30. Rfg1 {[%clk 0:00:20]}  Rf7 {[%clk 0:01:32]} 31. Be1 {[%clk 0:00:20]}  Bf8 {[%clk 0:01:27]} 32. Qh5 {[%clk 0:00:19]}  g6 {[%clk 0:01:20]} 33. Qh3 {[%clk 0:00:18]}  Kg8 {[%clk 0:01:14]} 34. Bh4 {[%clk 0:00:16]}  Bg7 {[%clk 0:01:06]} 35. Bg5 {[%clk 0:00:16]}  Rb8 {[%clk 0:01:00]} 36. Bh6 {[%clk 0:00:16]}  Kf8 {[%clk 0:00:44]} 37. Qh4 {[%clk 0:00:11]}  Bxh6 {[%clk 0:00:36]} 38. Qxh6+ {[%clk 0:00:11]}  Ke8 {[%clk 0:00:37]} 39. h4 {[%clk 0:00:11]}  Qe7 {[%clk 0:00:33]} 40. h5 {[%clk 0:00:10]}  Kd7 {[%clk 0:00:28]} 41. Rh2 {[%clk 0:00:04]}  Rg8 {[%clk 0:00:17]} 42. hxg6 {[%clk 0:00:04]}  Rxg6 {[%clk 0:00:17]} 43. Qh3 {[%clk 0:00:04]}  Rfg7 {[%clk 0:00:17]} 44. Rhg2 {[%clk 0:00:03]}  fxg4 {[%clk 0:00:16]} 45. Rxg4 {[%clk 0:00:02]}  Rxg4 {[%clk 0:00:16]} 46. Rxg4 {[%clk 0:00:03]}  Rxg4 {[%clk 0:00:16]} 47. Qxg4 {[%clk 0:00:04]}  h6 {[%clk 0:00:12]} 48. f5 {[%clk 0:00:05]}  Qf6 {[%clk 0:00:06]} 49. fxe6+ {[%clk 0:00:04]}  Ke7 {[%clk 0:00:07]} 50. Bf5 {[%clk 0:00:04]}  Bd1 {[%clk 0:00:06]} 51. Qf4 {[%clk 0:00:04]}  Kf8 {[%clk 0:00:04]} 52. Qd6+ {[%clk 0:00:02]}  Qe7 {[%clk 0:00:03]} 53. Qf4 {[%clk 0:00:01]}  Ke8 {[%clk 0:00:03]} 54. Kg1 {[%clk 0:00:02]}  Qf6 {[%clk 0:00:02]} 55. Kf2 {[%clk 0:00:03]}  Kf8 {[%clk 0:00:02]} 56. Qd6+ {[%clk 0:00:03]}  Qe7 {[%clk 0:00:02]} 57. Qf4 {[%clk 0:00:04]}  Kg7 {[%clk 0:00:03]} 58. Qe5+ {[%clk 0:00:04]}  Kg8 {[%clk 0:00:03]} 59. Qg3+ {[%clk 0:00:05]}  Kf8 {[%clk 0:00:04]} 60. Qg1 {[%clk 0:00:06]}  Bb3 {[%clk 0:00:03]} 61. Qg6 {[%clk 0:00:06]}  Qg7 {[%clk 0:00:02]} 62. e7+ {[%clk 0:00:05]}  Qxe7 {[%clk 0:00:02]} 63. Qxh6+ {[%clk 0:00:05]}  Qg7 {[%clk 0:00:03]} 64. Qd6+ {[%clk 0:00:05]}  Qe7 {[%clk 0:00:02]} 65. Qxd5 {[%clk 0:00:05]}  Qh4+ {[%clk 0:00:03]} 66. Ke2 {[%clk 0:00:04]}  Qh2+ {[%clk 0:00:03]} 67. Kf3 {[%clk 0:00:04]}  Qh1+ {[%clk 0:00:03]} 68. Kf4 {[%clk 0:00:04]}  Qxd5 {[%clk 0:00:04]} 69. e4 {[%clk 0:00:05]}  Qd6+ {[%clk 0:00:05]} 70. e5 {[%clk 0:00:05]}  Qh6+ {[%clk 0:00:06]} 71. Ke4 {[%clk 0:00:05]}  Qd2 {[%clk 0:00:07]} 72. Be6 {[%clk 0:00:05]}  Bc2+ {[%clk 0:00:07]} 73. Kd5 {[%clk 0:00:05]}  Qxc3 {[%clk 0:00:07]} 74. Kc5 {[%clk 0:00:06]}  Qa5+ {[%clk 0:00:06]} 75. Kd6 {[%clk 0:00:06]}  c3 {[%clk 0:00:06]} 0-1


[Site "https://www.chess.com"]

[Event "Titled Tuesday Blitz June 28 Early 2022"]
[White "Janaszak, Dawid"]
[Black "Mekhane, Adam"]
[WhiteFideId "1119206"]
[BlackFideId "36050601"]
[WhiteElo "2199"]
[BlackElo "2002"]
[Result "1-0"]
[Round "01"]
[TimeControl "180+1"]
[Date "2022.06.28"]
[WhiteClock "0:00:05"]
[BlackClock "0:00:07"]

1. e4 {[%clk 0:03:00]}  e5 {[%clk 0:02:57]} 2. Nf3 {[%clk 0:02:59]}  Nc6 {[%clk 0:02:56]} 3. d4 {[%clk 0:03:00]}  exd4 {[%clk 0:02:55]} 4. Nxd4 {[%clk 0:03:01]}  Bb4+ {[%clk 0:02:55]} 5. c3 {[%clk 0:02:57]}  Bc5 {[%clk 0:02:55]} 6. Nb3 {[%clk 0:02:56]}  Bb6 {[%clk 0:02:55]} 7. a4 {[%clk 0:02:55]}  a5 {[%clk 0:02:51]} 8. Qh5 {[%clk 0:02:46]}  Nf6 {[%clk 0:02:47]} 9. Qh4 {[%clk 0:02:46]}  Qe7 {[%clk 0:02:34]} 10. Bd3 {[%clk 0:02:34]}  d5 {[%clk 0:02:32]} 11. Bg5 {[%clk 0:02:20]}  dxe4 {[%clk 0:02:29]} 12. Bxf6 {[%clk 0:02:13]}  gxf6 {[%clk 0:02:14]} 13. Qxe4 {[%clk 0:02:11]}  Be6 {[%clk 0:02:11]} 14. N1d2 {[%clk 0:02:10]}  O-O-O {[%clk 0:02:06]} 15. O-O-O {[%clk 0:02:03]}  Bxf2 {[%clk 0:02:01]} 16. Rhf1 {[%clk 0:01:55]}  Bb6 {[%clk 0:01:59]} 17. Bb5 {[%clk 0:01:52]}  Ne5 {[%clk 0:01:57]} 18. Nd4 {[%clk 0:01:44]}  c6 {[%clk 0:01:29]} 19. Be2 {[%clk 0:01:39]}  Bxd4 {[%clk 0:01:13]} 20. cxd4 {[%clk 0:01:40]}  Ng6 {[%clk 0:01:10]} 21. Bc4 {[%clk 0:01:27]}  Bxc4 {[%clk 0:01:04]} 22. Qxe7 {[%clk 0:01:27]}  Nxe7 {[%clk 0:01:04]} 23. Nxc4 {[%clk 0:01:27]}  Nd5 {[%clk 0:01:04]} 24. Rde1 {[%clk 0:01:18]}  Kd7 {[%clk 0:01:03]} 25. Nxa5 {[%clk 0:01:16]}  b6 {[%clk 0:00:56]} 26. Nc4 {[%clk 0:01:15]}  Ra8 {[%clk 0:00:50]} 27. b3 {[%clk 0:01:12]}  b5 {[%clk 0:00:50]} 28. Nb2 {[%clk 0:01:00]}  Rhg8 {[%clk 0:00:40]} 29. g3 {[%clk 0:00:59]}  Rg4 {[%clk 0:00:39]} 30. Rf2 {[%clk 0:00:34]}  Rxd4 {[%clk 0:00:38]} 31. Rd2 {[%clk 0:00:35]}  Rxd2 {[%clk 0:00:31]} 32. Kxd2 {[%clk 0:00:36]}  bxa4 {[%clk 0:00:31]} 33. Nxa4 {[%clk 0:00:35]}  Kd6 {[%clk 0:00:30]} 34. Rf1 {[%clk 0:00:33]}  Rb8 {[%clk 0:00:29]} 35. Rf3 {[%clk 0:00:32]}  Rb4 {[%clk 0:00:29]} 36. Kc2 {[%clk 0:00:30]}  Re4 {[%clk 0:00:27]} 37. Rf2 {[%clk 0:00:30]}  Re3 {[%clk 0:00:23]} 38. Nb2 {[%clk 0:00:25]}  Rc3+ {[%clk 0:00:22]} 39. Kd2 {[%clk 0:00:25]}  Rxb3 {[%clk 0:00:22]} 40. Kc2 {[%clk 0:00:25]}  Rc3+ {[%clk 0:00:21]} 41. Kd2 {[%clk 0:00:26]}  Rc5 {[%clk 0:00:19]} 42. Nd3 {[%clk 0:00:26]}  Ra5 {[%clk 0:00:19]} 43. Kc1 {[%clk 0:00:19]}  Ra3 {[%clk 0:00:17]} 44. Rd2 {[%clk 0:00:19]}  Ra1+ {[%clk 0:00:17]} 45. Kb2 {[%clk 0:00:19]}  Rh1 {[%clk 0:00:17]} 46. Nf2 {[%clk 0:00:20]}  Rf1 {[%clk 0:00:16]} 47. Ng4 {[%clk 0:00:20]}  h5 {[%clk 0:00:14]} 48. Nh6 {[%clk 0:00:19]}  Ke6 {[%clk 0:00:12]} 49. Re2+ {[%clk 0:00:19]}  Kd7 {[%clk 0:00:11]} 50. Nxf7 {[%clk 0:00:20]}  Rf3 {[%clk 0:00:08]} 51. Kc2 {[%clk 0:00:17]}  Re3 {[%clk 0:00:07]} 52. Rf2 {[%clk 0:00:17]}  Ke6 {[%clk 0:00:07]} 53. Nh6 {[%clk 0:00:17]}  Re5 {[%clk 0:00:06]} 54. Kd3 {[%clk 0:00:14]}  Ne3 {[%clk 0:00:06]} 55. Rb2 {[%clk 0:00:13]}  Ng4 {[%clk 0:00:05]} 56. Nxg4 {[%clk 0:00:12]}  hxg4 {[%clk 0:00:05]} 57. Rb4 {[%clk 0:00:13]}  Rh5 {[%clk 0:00:05]} 58. Rxg4 {[%clk 0:00:09]}  Rxh2 {[%clk 0:00:05]} 59. Kc4 {[%clk 0:00:10]}  Rc2+ {[%clk 0:00:04]} 60. Kd3 {[%clk 0:00:10]}  Rc1 {[%clk 0:00:05]} 61. Rg8 {[%clk 0:00:09]}  Rc5 {[%clk 0:00:05]} 62. Kd4 {[%clk 0:00:09]}  Rd5+ {[%clk 0:00:05]} 63. Ke4 {[%clk 0:00:10]}  Rg5 {[%clk 0:00:05]} 64. Re8+ {[%clk 0:00:06]}  Kd7 {[%clk 0:00:06]} 65. Rf8 {[%clk 0:00:06]}  Rg6 {[%clk 0:00:05]} 66. Kf4 {[%clk 0:00:05]}  c5 {[%clk 0:00:04]} 67. g4 {[%clk 0:00:05]}  c4 {[%clk 0:00:05]} 68. Ra8 {[%clk 0:00:04]}  Rg7 {[%clk 0:00:03]} 69. Ra7+ {[%clk 0:00:04]}  Kd6 {[%clk 0:00:03]} 70. Rxg7 {[%clk 0:00:05]}  c3 {[%clk 0:00:04]} 71. Rg8 {[%clk 0:00:04]}  Kd7 {[%clk 0:00:04]} 72. Rh8 {[%clk 0:00:04]}  c2 {[%clk 0:00:04]} 73. Rh1 {[%clk 0:00:02]}  c1=Q+ {[%clk 0:00:05]} 74. Rxc1 {[%clk 0:00:02]}  Ke6 {[%clk 0:00:06]} 75. Rd1 {[%clk 0:00:03]}  Kf7 {[%clk 0:00:06]} 76. Re1 {[%clk 0:00:04]}  Kg6 {[%clk 0:00:07]} 77. Re2 {[%clk 0:00:05]} 1-0


[Site "https://www.chess.com"]

[Event "Titled Tuesday Blitz June 28 Early 2022"]
[White "Jaskolka, Tomasz"]
[Black "Seliverstov, Vladimir"]
[WhiteFideId "1170791"]
[BlackFideId "4192036"]
[WhiteElo "2073"]
[BlackElo "2489"]
[Result "0-1"]
[Round "01"]
[TimeControl "180+1"]
[Date "2022.06.28"]
[WhiteClock "0:02:15"]
[BlackClock "0:02:01"]

1. d4 {[%clk 0:02:58]}  g6 {[%clk 0:02:57]} 2. Nc3 {[%clk 0:02:58]}  Bg7 {[%clk 0:02:57]} 3. e4 {[%clk 0:02:58]}  d6 {[%clk 0:02:58]} 4. Be3 {[%clk 0:02:57]}  a6 {[%clk 0:02:59]} 5. Qd2 {[%clk 0:02:57]}  b5 {[%clk 0:02:58]} 6. O-O-O {[%clk 0:02:58]}  Bb7 {[%clk 0:02:58]} 7. f3 {[%clk 0:02:58]}  Nd7 {[%clk 0:02:59]} 8. Nge2 {[%clk 0:02:57]}  Rc8 {[%clk 0:02:57]} 9. h4 {[%clk 0:02:56]}  h6 {[%clk 0:02:57]} 10. g4 {[%clk 0:02:56]}  c5 {[%clk 0:02:56]} 11. dxc5 {[%clk 0:02:53]}  Nxc5 {[%clk 0:02:56]} 12. Bd4 {[%clk 0:02:52]}  Nf6 {[%clk 0:02:56]} 13. g5 {[%clk 0:02:52]}  hxg5 {[%clk 0:02:56]} 14. Bh3 {[%clk 0:02:48]}  gxh4 {[%clk 0:02:49]} 15. Bxc8 {[%clk 0:02:45]}  Qxc8 {[%clk 0:02:50]} 16. Nf4 {[%clk 0:02:41]}  e5 {[%clk 0:02:30]} 17. Bxc5 {[%clk 0:02:40]}  dxc5 {[%clk 0:02:22]} 18. Nfd5 {[%clk 0:02:40]}  Nxd5 {[%clk 0:02:18]} 19. Nxd5 {[%clk 0:02:40]}  Bh6 {[%clk 0:02:15]} 20. f4 {[%clk 0:02:35]}  Bxd5 {[%clk 0:02:11]} 21. Qxd5 {[%clk 0:02:35]}  Bxf4+ {[%clk 0:02:12]} 22. Kb1 {[%clk 0:02:35]}  h3 {[%clk 0:02:10]} 23. Rhf1 {[%clk 0:02:26]}  O-O {[%clk 0:02:07]} 24. Rd3 {[%clk 0:02:21]}  c4 {[%clk 0:02:02]} 25. Rdf3 {[%clk 0:02:21]}  Qg4 {[%clk 0:02:02]} 26. a4 {[%clk 0:02:18]}  h2 {[%clk 0:02:02]} 27. axb5 {[%clk 0:02:17]}  Qxf3 {[%clk 0:02:01]} 28. Rxf3 {[%clk 0:02:15]}  h1=Q+ {[%clk 0:02:01]} 0-1


[Site "https://www.chess.com"]

[Event "Titled Tuesday Blitz June 28 Early 2022"]
[White "Johnson, Donald"]
[Black "Magallanes, Rey Jomar"]
[WhiteFideId "30949122"]
[BlackFideId "5205948"]
[WhiteElo "1724"]
[BlackElo "2185"]
[Result "1-0"]
[Round "01"]
[TimeControl "180+1"]
[Date "2022.06.28"]
[WhiteClock "0:01:47"]
[BlackClock "0:01:39"]

1. Nf3 {[%clk 0:02:58]}  c5 {[%clk 0:02:59]} 2. b3 {[%clk 0:02:57]}  d6 {[%clk 0:02:59]} 3. Bb2 {[%clk 0:02:57]}  Nf6 {[%clk 0:02:59]} 4. c4 {[%clk 0:02:56]}  e6 {[%clk 0:02:59]} 5. e3 {[%clk 0:02:54]}  Be7 {[%clk 0:02:59]} 6. Be2 {[%clk 0:02:55]}  O-O {[%clk 0:02:58]} 7. O-O {[%clk 0:02:55]}  Nc6 {[%clk 0:02:57]} 8. d4 {[%clk 0:02:55]}  b6 {[%clk 0:02:55]} 9. Nc3 {[%clk 0:02:53]}  Bb7 {[%clk 0:02:54]} 10. d5 {[%clk 0:02:48]}  exd5 {[%clk 0:02:53]} 11. Nxd5 {[%clk 0:02:49]}  a6 {[%clk 0:02:49]} 12. Nxe7+ {[%clk 0:02:37]}  Nxe7 {[%clk 0:02:48]} 13. Bxf6 {[%clk 0:02:35]}  gxf6 {[%clk 0:02:48]} 14. Nh4 {[%clk 0:02:32]}  Ng6 {[%clk 0:02:48]} 15. Nf5 {[%clk 0:02:31]}  Qc7 {[%clk 0:02:32]} 16. Qxd6 {[%clk 0:02:27]}  Qxd6 {[%clk 0:02:32]} 17. Nxd6 {[%clk 0:02:28]}  Bc6 {[%clk 0:02:31]} 18. Rad1 {[%clk 0:02:26]}  Rfd8 {[%clk 0:02:30]} 19. Rd2 {[%clk 0:02:21]}  Ne5 {[%clk 0:02:30]} 20. Rfd1 {[%clk 0:02:21]}  Kf8 {[%clk 0:02:25]} 21. f3 {[%clk 0:02:12]}  Rd7 {[%clk 0:02:23]} 22. Nf5 {[%clk 0:02:05]}  Rad8 {[%clk 0:02:21]} 23. Rxd7 {[%clk 0:02:04]}  Rxd7 {[%clk 0:02:22]} 24. Rxd7 {[%clk 0:02:03]}  Bxd7 {[%clk 0:02:22]} 25. Ng3 {[%clk 0:02:00]}  Nc6 {[%clk 0:02:14]} 26. a3 {[%clk 0:01:55]}  a5 {[%clk 0:02:08]} 27. Kf2 {[%clk 0:01:52]}  a4 {[%clk 0:01:57]} 28. bxa4 {[%clk 0:01:51]}  Na5 {[%clk 0:01:57]} 29. Ne4 {[%clk 0:01:51]}  Bxa4 {[%clk 0:01:54]} 30. Nxf6 {[%clk 0:01:49]}  Kg7 {[%clk 0:01:49]} 31. Nd5 {[%clk 0:01:48]}  Bb3 {[%clk 0:01:42]} 32. Nxb6 {[%clk 0:01:48]}  Kf6 {[%clk 0:01:42]} 33. Nd7+ {[%clk 0:01:47]}  Ke6 {[%clk 0:01:42]} 34. Nxc5+ {[%clk 0:01:47]}  Kd6 {[%clk 0:01:42]} 35. Nxb3 {[%clk 0:01:45]}  Nxb3 {[%clk 0:01:42]} 36. Ke1 {[%clk 0:01:44]}  Kc5 {[%clk 0:01:43]} 37. Kd1 {[%clk 0:01:44]}  Na5 {[%clk 0:01:43]} 38. Kc2 {[%clk 0:01:44]}  Nxc4 {[%clk 0:01:43]} 39. Bxc4 {[%clk 0:01:43]}  Kxc4 {[%clk 0:01:44]} 40. Kb2 {[%clk 0:01:42]}  f6 {[%clk 0:01:38]} 41. e4 {[%clk 0:01:42]}  h6 {[%clk 0:01:36]} 42. f4 {[%clk 0:01:41]}  Kd4 {[%clk 0:01:36]} 43. e5 {[%clk 0:01:42]}  fxe5 {[%clk 0:01:36]} 44. fxe5 {[%clk 0:01:43]}  Kxe5 {[%clk 0:01:36]} 45. Kb3 {[%clk 0:01:43]}  Ke4 {[%clk 0:01:34]} 46. a4 {[%clk 0:01:43]}  Ke3 {[%clk 0:01:35]} 47. a5 {[%clk 0:01:43]}  Kf2 {[%clk 0:01:35]} 48. a6 {[%clk 0:01:44]}  Kxg2 {[%clk 0:01:36]} 49. a7 {[%clk 0:01:44]}  Kxh2 {[%clk 0:01:36]} 50. a8=Q {[%clk 0:01:45]}  h5 {[%clk 0:01:37]} 51. Qf3 {[%clk 0:01:42]}  h4 {[%clk 0:01:37]} 52. Qg4 {[%clk 0:01:43]}  h3 {[%clk 0:01:38]} 53. Kc2 {[%clk 0:01:42]}  Kh1 {[%clk 0:01:37]} 54. Qxh3+ {[%clk 0:01:43]}  Kg1 {[%clk 0:01:37]} 55. Qf3 {[%clk 0:01:43]}  Kh2 {[%clk 0:01:37]} 56. Qg4 {[%clk 0:01:43]}  Kh1 {[%clk 0:01:37]} 57. Kd2 {[%clk 0:01:44]}  Kh2 {[%clk 0:01:37]} 58. Ke2 {[%clk 0:01:45]}  Kh1 {[%clk 0:01:38]} 59. Kf2 {[%clk 0:01:46]}  Kh2 {[%clk 0:01:39]} 60. Qh4# {[%clk 0:01:47]} 1-0


[Site "https://www.chess.com"]

[Event "Titled Tuesday Blitz June 28 Early 2022"]
[White "Jovic, Stanoje"]
[Black "Samunenkov, Ihor"]
[WhiteFideId "905020"]
[BlackFideId "14187086"]
[WhiteElo "2286"]
[BlackElo "2409"]
[Result "0-1"]
[Round "01"]
[TimeControl "180+1"]
[Date "2022.06.28"]
[WhiteClock "0:01:00"]
[BlackClock "0:01:13"]

1. c4 {[%clk 0:03:00]}  c5 {[%clk 0:02:58]} 2. g3 {[%clk 0:03:00]}  Nc6 {[%clk 0:02:58]} 3. Bg2 {[%clk 0:03:01]}  g6 {[%clk 0:02:58]} 4. Nc3 {[%clk 0:03:01]}  Bg7 {[%clk 0:02:59]} 5. Nf3 {[%clk 0:03:01]}  d6 {[%clk 0:02:59]} 6. O-O {[%clk 0:03:01]}  Rb8 {[%clk 0:02:59]} 7. e3 {[%clk 0:03:01]}  Be6 {[%clk 0:02:45]} 8. Nd5 {[%clk 0:02:54]}  Nf6 {[%clk 0:02:32]} 9. Ng5 {[%clk 0:02:52]}  Bd7 {[%clk 0:02:29]} 10. d4 {[%clk 0:02:43]}  cxd4 {[%clk 0:02:24]} 11. exd4 {[%clk 0:02:39]}  Nxd5 {[%clk 0:02:23]} 12. cxd5 {[%clk 0:02:25]}  Nxd4 {[%clk 0:02:22]} 13. Be3 {[%clk 0:02:22]}  Nf5 {[%clk 0:02:22]} 14. Bf4 {[%clk 0:01:56]}  Bxb2 {[%clk 0:02:14]} 15. Rb1 {[%clk 0:01:54]}  Bg7 {[%clk 0:02:15]} 16. g4 {[%clk 0:01:45]}  Nh4 {[%clk 0:02:06]} 17. Bh1 {[%clk 0:01:42]}  h6 {[%clk 0:01:58]} 18. Ne4 {[%clk 0:01:38]}  f5 {[%clk 0:01:53]} 19. Nxd6+ {[%clk 0:01:30]}  exd6 {[%clk 0:01:46]} 20. Re1+ {[%clk 0:01:30]}  Kf7 {[%clk 0:01:41]} 21. Bxd6 {[%clk 0:01:29]}  Ba4 {[%clk 0:01:19]} 22. Re7+ {[%clk 0:01:20]}  Qxe7 {[%clk 0:01:17]} 23. Qxa4 {[%clk 0:01:00]}  Qxd6 {[%clk 0:01:16]} 24. Qxa7 {[%clk 0:01:00]}  Rhc8 {[%clk 0:01:13]} 0-1


[Site "https://www.chess.com"]